bitfinex/quotes_SOLUSD_20250301
["timestamp","ask_amount","ask_price","bid_price","bid_amount"]
[1740870129467,18.64964886,142.87,142.84,0.063]
[1740870129770,101.64964886,142.87,142.84,0.063]
[1740870130369,20.0,142.85,142.84,0.063]
[1740870130573,44.24984886,142.85,142.84,0.063]
[1740870130767,127.24984886,142.85,142.84,0.063]
[1740870131663,18.64964886,142.84,142.82,0.063]
[1740870132261,101.64964886,142.83,142.82,0.0001]
[1740870132864,18.64964886,142.83,142.82,0.0001]
[1740870134755,90.8407,142.88,142.82,0.0001]
[1740870135068,89.0215,142.88,142.82,0.0001]
[1740870135570,18.64964886,142.87,142.82,0.0001]
[1740870139057,83.0,142.9,142.82,62.36485936]
[1740870139252,83.0,142.9,142.83,33.05445936]
[1740870139649,8.3955,142.91,142.84,33.05445936]
[1740870139854,8.3955,142.91,142.85,6.3]
[1740870140073,18.64964886,142.9,142.85,6.3]
[1740870140461,18.64964886,142.9,142.85,11.9]
[1740870140869,18.64964886,142.9,142.85,6.3]
[1740870142570,18.71264886,142.91,142.85,11.9]
[1740870142781,18.71264886,142.91,142.86,33.05445936]
[1740870144684,18.71264886,142.91,142.86,38.65405936]
[1740870146072,5.6609,142.91,142.85,41.00135936]
[1740870146273,0.063,142.91,142.85,46.60155936]
[1740870146673,5.6609,142.91,142.85,46.60155936]
[1740870147764,5.6609,142.91,142.85,41.00135936]
[1740870147964,5.6609,142.91,142.85,75.91175936]
[1740870148965,101.64964886,142.9,142.82,0.0001]
[1740870149162,18.64964886,142.88,142.82,0.0001]
[1740870149368,18.64964886,142.86,142.82,0.0001]
[1740870149569,101.64964886,142.86,142.82,0.0001]
[1740870149768,18.64964886,142.84,142.82,0.0001]
[1740870149964,20.64964886,142.84,142.82,0.0001]
[1740870150182,18.64964886,142.79,142.78,0.063]
[1740870150769,18.64964886,142.79,142.77,0.063]
[1740870150970,18.64964886,142.77,142.76,0.063]
[1740870151176,6.0844,142.83,142.76,0.063]
[1740870151386,13.3736,142.87,142.76,32.63738307]
[1740870151687,13.3737,142.87,142.77,38.6673091]
[1740870151887,13.3736,142.87,142.77,38.6673091]
[1740870152080,18.64964886,142.86,142.77,67.9776091]
[1740870152287,18.64964886,142.86,142.77,29.3103]
[1740870152682,18.64964886,142.86,142.76,11.9667]
[1740870152683,18.64964886,142.8,142.76,6.363]
[1740870152884,18.64964886,142.8,142.76,0.063]
[1740870153092,38.64964886,142.77,142.76,0.063]
[1740870153990,6.0844,142.82,142.76,0.063]
[1740870154303,10.85494432,142.85,142.77,6.32]
[1740870154603,101.64964886,142.84,142.77,6.32]
[1740870154771,18.64964886,142.8,142.76,0.063]
[1740870154972,18.64964886,142.82,142.76,0.063]
[1740870155172,18.64964886,142.82,142.76,33.1273091]
[1740870155372,93.85494432,142.84,142.78,33.0643091]
[1740870155680,18.64964886,142.83,142.77,33.0643091]
[1740870155996,18.64964886,142.83,142.78,5.603]
[1740870156488,10.85494432,142.84,142.79,33.0643091]
[1740870156688,10.85494432,142.84,142.8,39.4043091]
[1740870156881,10.85494432,142.84,142.83,33.0643091]
[1740870157199,10.85494432,142.84,142.8,152.4503]
[1740870157414,10.85494432,142.84,142.78,6.38]
[1740870157573,18.64964886,142.83,142.78,6.38]
[1740870158080,18.64964886,142.86,142.79,5.6026]
[1740870158284,83.0,142.88,142.8,33.0643091]
[1740870158615,83.0,142.9,142.82,33.0643091]
[1740870158779,83.0,142.9,142.83,6.38]
[1740870159107,18.64964886,142.89,142.83,6.38]
[1740870160007,18.64964886,142.89,142.76,24.0962]
[1740870160008,18.64964886,142.87,142.78,6.4]
[1740870160314,18.64964886,142.85,142.78,6.4]
[1740870160683,18.64964886,142.85,142.78,39.4643091]
[1740870161030,18.64964886,142.85,142.8,33.0643091]
[1740870161325,0.063,142.84,142.8,33.0643091]
[1740870161615,0.063,142.84,142.79,33.0643091]
[1740870161915,0.063,142.84,142.78,185.5746091]
[1740870162214,0.063,142.84,142.79,38.6669091]
[1740870162386,0.063,142.84,142.81,33.0643091]
[1740870162582,0.063,142.84,142.82,33.0643091]
[1740870162786,0.063,142.84,142.83,6.42]
[1740870162997,0.063,142.84,142.83,35.7303]
[1740870163304,0.063,142.84,142.83,29.3103]
[1740870164620,0.063,142.84,142.79,35.7503]
[1740870164788,0.063,142.84,142.76,62.4376091]
[1740870165111,0.063,142.84,142.76,29.3733]
[1740870165319,18.64964886,142.82,142.76,29.3733]
[1740870165826,18.64964886,142.82,142.76,62.4376091]
[1740870166114,18.64964886,142.82,142.78,33.0643091]
[1740870166287,5.6638,142.84,142.78,62.3746091]
[1740870166484,5.6638,142.84,142.78,29.3103]
[1740870166790,18.64964886,142.83,142.78,29.3103]
[1740870167188,18.64964886,142.83,142.78,34.9131]
[1740870168592,5.6011,142.83,142.78,29.3103]
[1740870169105,24.25074886,142.83,142.78,29.3103]
[1740870169310,101.64964886,142.82,142.76,0.063]
[1740870169512,18.64964886,142.8,142.76,0.063]
[1740870170610,18.64964886,142.78,142.76,0.063]
[1740870173302,24.25274886,142.78,142.76,0.063]
[1740870177225,107.25274886,142.78,142.76,0.063]
[1740870177924,101.64964886,142.77,142.76,0.063]
[1740870178110,18.64964886,142.77,142.76,0.063]
[1740870180916,24.25304886,142.77,142.76,0.063]
[1740870182212,18.64964886,142.77,142.76,0.063]
[1740870182444,88.6022,142.8,142.76,0.063]
[1740870182617,6.5728,142.83,142.76,29.3733]
[1740870182826,12.1739,142.83,142.77,6.5]
[1740870183213,18.64964886,142.82,142.77,6.5]
[1740870183420,18.64964886,142.82,142.77,45.1675091]
[1740870183816,24.25104886,142.82,142.77,6.5]
[1740870184508,24.25104886,142.82,142.77,6.53]
[1740870184711,18.64964886,142.8,142.77,6.53]
[1740870185330,5.6026,142.79,142.77,6.53]
[1740870185518,18.64964886,142.78,142.77,6.53]
[1740870186142,101.64964886,142.78,142.77,0.03]
[1740870187535,107.25264886,142.78,142.77,0.03]
[1740870189813,107.25264886,142.78,142.76,0.063]
[1740870190918,5.6014,142.82,142.76,0.063]
[1740870191433,18.64964886,142.81,142.76,0.063]
[1740870191624,24.25184886,142.81,142.76,0.063]
[1740870191812,83.0,142.83,142.76,0.063]
[1740870192015,91.2641,142.84,142.77,33.0643091]
[1740870192246,83.063,142.84,142.78,33.0643091]
[1740870192541,18.64964886,142.83,142.77,39.5843091]
[1740870193252,18.64964886,142.81,142.77,6.52]
[1740870195146,5.6022,142.8,142.77,6.52]
[1740870195726,5.6022,142.8,142.76,0.063]
[1740870196346,18.64964886,142.79,142.76,0.063]
[1740870197339,5.603,142.78,142.76,0.063]
[1740870197737,18.64964886,142.77,142.76,0.063]
[1740870198825,18.64964886,142.77,142.76,0.0001]
[1740870198826,20.64964886,142.77,142.76,0.0001]
[1740870199231,18.64964886,142.77,142.76,0.0001]
[1740870199432,24.25304886,142.77,142.76,0.0001]
[1740870204141,5.6026,142.79,142.76,0.0001]
[1740870204336,18.64964886,142.78,142.76,0.0001]
[1740870205130,24.25284886,142.78,142.76,0.0001]
[1740870207049,24.31584886,142.78,142.76,0.0001]
[1740870207630,101.64964886,142.77,142.76,0.0001]
[1740870207829,107.25304886,142.77,142.76,0.0001]
[1740870213352,24.25304886,142.77,142.76,0.0001]
[1740870222447,20.0,142.74,142.73,0.063]
[1740870222634,38.64964886,142.74,142.73,0.063]
[1740870223651,44.25414886,142.74,142.73,0.063]
[1740870224462,44.25414886,142.74,142.73,0.0001]
[1740870224637,44.25414886,142.74,142.69,0.03]
[1740870224638,18.64964886,142.73,142.69,0.03]
[1740870224838,38.64964886,142.68,142.67,0.03]
[1740870225850,44.25654886,142.68,142.67,0.03]
[1740870226547,18.64964886,142.67,142.61,0.03]
[1740870226747,18.64964886,142.65,142.61,0.03]
[1740870227350,18.64964886,142.63,142.61,0.03]
[1740870228142,4.0,142.7,142.61,0.03]
[1740870228143,83.0,142.67,142.61,0.03]
[1740870228345,83.0,142.67,142.62,1.8017]
[1740870228546,18.64964886,142.66,142.62,1.8017]
[1740870230081,83.0,142.7,142.62,57.41297324]
[1740870230362,93.85494432,142.73,142.65,20.69177324]
[1740870230560,18.64964886,142.71,142.65,27.15177324]
[1740870231868,18.64964886,142.71,142.66,5.6077]
[1740870232476,24.25544886,142.71,142.66,5.6077]
[1740870232765,18.64964886,142.71,142.66,5.6077]
[1740870236451,24.25534886,142.71,142.66,5.6077]
[1740870239580,18.64964886,142.71,142.66,5.6077]
[1740870239983,18.64964886,142.71,142.66,26.29947324]
[1740870240479,83.0,142.72,142.66,26.29947324]
[1740870240660,24.072,142.78,142.69,20.69177324]
[1740870240661,83.0,142.77,142.69,20.69177324]
[1740870240981,18.64964886,142.76,142.7,27.11177324]
[1740870241556,18.64964886,142.76,142.7,6.42]
[1740870241758,24.25344886,142.76,142.71,5.6057]
[1740870241959,24.25344886,142.76,142.7,6.42]
[1740870242885,18.64964886,142.76,142.7,12.026]
[1740870243188,18.64964886,142.76,142.7,32.71777324]
[1740870243688,0.063,142.78,142.71,20.69177324]
[1740870243870,0.063,142.78,142.73,22.50147324]
[1740870244067,0.063,142.78,142.74,26.85737324]
[1740870244279,0.063,142.78,142.75,27.13177324]
[1740870244581,0.063,142.78,142.76,20.69177324]
[1740870244775,0.063,142.78,142.77,20.69177324]
[1740870244975,10.85494432,142.83,142.78,1.8097]
[1740870245285,16.45604432,142.83,142.78,31.12]
[1740870245484,18.64964886,142.82,142.78,31.12]
[1740870246166,0.063,142.84,142.83,24.0]
[1740870246385,0.063,142.86,142.83,199.15177324]
[1740870246582,0.063,142.86,142.85,40.69177324]
[1740870247782,0.063,142.86,142.85,46.29197324]
[1740870247958,0.063,142.86,142.85,52.45757324]
[1740870248484,0.063,142.86,142.85,6.1656]
[1740870249000,0.063,142.86,142.83,6.54]
[1740870249282,0.063,142.86,142.81,152.2759]
[1740870249283,0.063,142.86,142.81,146.1103]
[1740870249588,0.063,142.86,142.79,34.64397324]
[1740870249764,0.063,142.86,142.79,35.8503]
[1740870249963,0.063,142.86,142.79,6.54]
[1740870250795,0.063,142.86,142.8,20.69177324]
[1740870251095,0.063,142.86,142.81,20.69177324]
[1740870251476,0.063,142.86,142.8,20.69177324]
[1740870251671,0.063,142.86,142.82,33.04936752]
[1740870251881,0.063,142.86,142.83,33.04936752]
[1740870252070,0.063,142.86,142.84,39.60936752]
[1740870253282,0.063,142.86,142.84,68.91966752]
[1740870253663,0.063,142.86,142.84,35.8703]
[1740870253869,0.063,142.86,142.8,6.56]
[1740870254175,18.71264886,142.86,142.78,146.1103]
[1740870254396,18.64964886,142.84,142.77,6.58]
[1740870255809,5.601,142.83,142.77,6.58]
[1740870255975,18.64964886,142.82,142.77,6.58]
[1740870256508,18.64964886,142.82,142.73,179.15966752]
[1740870256669,18.64964886,142.8,142.73,29.3103]
[1740870256868,18.64964886,142.78,142.7,34.9163]
[1740870257100,83.0,142.77,142.71,6.58]
[1740870257889,18.64964886,142.75,142.71,6.58]
[1740870259714,83.0,142.77,142.71,6.58]
[1740870260012,5.6022,142.8,142.74,33.04936752]
[1740870260386,18.64964886,142.79,142.74,33.04936752]
[1740870260587,18.64964886,142.79,142.73,33.04936752]
[1740870261512,83.0,142.81,142.75,33.04936752]
[1740870261684,5.6003,142.85,142.77,33.04936752]
[1740870262005,18.64964886,142.84,142.77,62.35966752]
[1740870262381,18.64964886,142.84,142.77,29.3103]
[1740870263589,83.0,142.85,142.77,29.3103]
[1740870263590,18.64964886,142.82,142.77,29.3103]
[1740870264201,18.64964886,142.82,142.77,34.9135]
[1740870264406,18.64964886,142.82,142.77,67.96286752]
[1740870264590,18.64964886,142.82,142.77,34.9135]
[1740870264912,18.64964886,142.82,142.77,67.96286752]
[1740870266115,18.64964886,142.82,142.77,34.9135]
[1740870266326,18.64964886,142.82,142.77,29.3103]
[1740870266527,88.6007,142.84,142.77,67.96296752]
[1740870266886,18.64964886,142.83,142.78,33.04936752]
[1740870267813,18.64964886,142.83,142.79,5.6026]
[1740870268111,18.64964886,142.83,142.78,5.6028]
[1740870268308,18.64964886,142.83,142.78,38.65216752]
[1740870268610,6.2171,142.86,142.8,33.04936752]
[1740870268611,0.063,142.86,142.8,33.04936752]
[1740870268803,0.063,142.86,142.81,39.60936752]
[1740870269006,0.063,142.86,142.81,35.8703]
[1740870269188,0.063,142.86,142.82,33.04936752]
[1740870269715,0.063,142.86,142.82,38.65036752]
[1740870270211,0.063,142.86,142.81,35.8703]
[1740870270385,0.063,142.86,142.81,6.56]
[1740870271329,0.063,142.86,142.81,12.1617]
[1740870272417,0.063,142.86,142.81,6.56]
[1740870274397,40.03394886,142.87,142.86,6.2996]
[1740870275915,26.03524886,142.87,142.86,6.2996]
[1740870276120,18.71264886,142.87,142.86,6.2996]
[1740870276701,0.063,142.87,142.86,6.2996]
[1740870279125,38.71264886,142.87,142.86,6.2996]
[1740870280718,44.31204886,142.87,142.86,6.2996]
[1740870282702,44.31204886,142.87,142.81,0.03]
[1740870282703,18.64964886,142.82,142.81,0.03]
[1740870284630,107.25104886,142.82,142.81,0.03]
[1740870288214,18.64964886,142.78,142.71,69.80936752]
[1740870288531,18.64964886,142.78,142.71,31.1544]
[1740870288532,101.64964886,142.78,142.71,31.1544]
[1740870288735,5.6034,142.77,142.71,31.1544]
[1740870289028,18.64964886,142.76,142.71,0.03]
[1740870289920,5.6034,142.77,142.71,0.03]
[1740870290317,18.64964886,142.78,142.73,33.04936752]
[1740870290516,103.0,142.79,142.75,33.04936752]
[1740870290719,20.0,142.79,142.75,33.04936752]
[1740870291033,18.64964886,142.81,142.75,38.65346752]
[1740870291225,18.64964886,142.81,142.76,33.04936752]
[1740870292221,5.6018,142.81,142.75,29.3103]
[1740870292534,5.6018,142.81,142.73,40.46836752]
[1740870292742,5.6018,142.81,142.73,7.419]
[1740870293414,20.0,142.78,142.72,41.4756]
[1740870293626,18.64964886,142.77,142.72,74.52496752]
[1740870295245,24.25304886,142.77,142.72,41.4756]
[1740870295742,5.6034,142.77,142.72,74.52496752]
[1740870295933,20.0,142.78,142.72,74.52496752]
[1740870296521,5.6029,142.79,142.73,33.04936752]
[1740870296729,5.6029,142.79,142.73,38.65396752]
[1740870297550,5.6645,142.82,142.76,33.04936752]
[1740870298750,18.64964886,142.81,142.77,5.6034]
[1740870300238,18.64964886,142.81,142.75,33.04936752]
[1740870300753,24.25144886,142.81,142.74,38.65386752]
[1740870301052,18.64964886,142.81,142.74,38.65386752]
[1740870301260,0.063,142.82,142.78,33.04936752]
[1740870301433,0.063,142.82,142.78,6.52]
[1740870302453,5.6644,142.82,142.78,6.52]
[1740870303353,18.64964886,142.81,142.76,34.9138]
[1740870303566,18.64964886,142.81,142.71,28.0574]
[1740870303567,18.64964886,142.76,142.71,29.3403]
[1740870304059,38.64964886,142.75,142.71,29.3403]
[1740870304225,83.0,142.79,142.71,29.3403]
[1740870304431,83.0,142.78,142.72,20.69228864]
[1740870304932,88.603,142.78,142.72,20.69228864]
[1740870305236,88.603,142.78,142.71,20.72228864]
[1740870305551,5.603,142.78,142.72,20.69228864]
[1740870305735,5.6645,142.82,142.75,34.73673072]
[1740870305932,5.6645,142.82,142.73,36.0103]
[1740870306133,20.0,142.76,142.73,29.3103]
[1740870306337,38.64964886,142.75,142.71,0.03]
[1740870306665,24.72734886,142.73,142.71,0.03]
[1740870307555,24.72734886,142.73,142.71,0.0001]
[1740870307556,107.72734886,142.73,142.71,0.0001]
[1740870307857,18.64964886,142.68,142.66,0.03]
[1740870308540,24.25694886,142.67,142.66,0.03]
[1740870308747,32.10324886,142.67,142.66,0.03]
[1740870309133,30.33464886,142.67,142.66,0.03]
[1740870309852,30.33464886,142.67,142.62,0.03]
[1740870310038,38.64964886,142.63,142.62,0.03]
[1740870310659,44.25854886,142.63,142.62,0.03]
[1740870310836,38.64964886,142.63,142.62,0.03]
[1740870311037,6.0777,142.67,142.62,0.03]
[1740870311232,20.0,142.64,142.62,0.03]
[1740870311438,18.64964886,142.63,142.62,0.03]
[1740870311657,38.64964886,142.62,142.61,0.03]
[1740870312157,11.5,142.65,142.61,0.03]
[1740870312158,129.785,142.67,142.61,0.03]
[1740870312363,11.685,142.67,142.61,0.03]
[1740870312543,20.0,142.64,142.61,0.03]
[1740870312953,18.64964886,142.65,142.61,0.03]
[1740870313257,11.6838,142.71,142.63,33.08453072]
[1740870313441,11.6838,142.71,142.62,33.08453072]
[1740870313654,20.0,142.68,142.62,33.08453072]
[1740870314044,18.64964886,142.67,142.61,7.59]
[1740870314258,18.64964886,142.67,142.61,40.67453072]
[1740870314463,11.6838,142.71,142.62,33.08453072]
[1740870314662,18.64964886,142.7,142.61,40.67453072]
[1740870314839,18.64964886,142.66,142.61,7.59]
[1740870317844,24.25734886,142.66,142.61,7.59]
[1740870318047,20.0921,142.71,142.61,7.59]
[1740870318354,18.64964886,142.65,142.61,0.03]
[1740870318667,18.64964886,142.63,142.61,0.03]
[1740870319543,5.6081,142.65,142.61,0.03]
[1740870320555,38.64964886,142.64,142.61,0.03]
[1740870320756,83.0,142.68,142.61,33.11453072]
[1740870320943,13.7977,142.71,142.61,33.11453072]
[1740870321145,18.64964886,142.66,142.61,0.03]
[1740870321452,6.0777,142.71,142.62,33.08453072]
[1740870321647,11.6835,142.71,142.64,33.08453072]
[1740870322062,18.64964886,142.7,142.63,40.82453072]
[1740870322270,18.64964886,142.7,142.63,7.74]
[1740870322571,24.25594886,142.7,142.63,46.43333072]
[1740870322866,24.25594886,142.7,142.63,40.82453072]
[1740870323472,24.25594886,142.7,142.63,46.43333072]
[1740870323659,83.0,142.73,142.65,33.08453072]
[1740870323845,5.6042,142.75,142.67,33.08453072]
[1740870324255,20.0,142.72,142.66,33.08453072]
[1740870325270,20.0,142.72,142.67,33.08453072]
[1740870326763,24.25434886,142.74,142.68,33.08453072]
[1740870326963,24.25434886,142.74,142.69,7.7]
[1740870327686,0.063,142.72,142.69,7.7]
[1740870327884,20.0,142.71,142.68,29.3103]
[1740870328062,18.64964886,142.7,142.65,29.3103]
[1740870328456,20.0,142.69,142.65,29.3103]
[1740870328951,25.6069,142.69,142.65,29.3103]
[1740870329356,24.25574886,142.71,142.65,29.3103]
[1740870330457,20.0,142.68,142.64,7.7]
[1740870330648,20.0,142.68,142.62,33.08453072]
[1740870330849,5.6073,142.67,142.62,70.07483072]
[1740870331570,115.66404886,142.71,142.62,70.07483072]
[1740870331876,5.6061,142.7,142.63,33.08453072]
[1740870333264,5.6061,142.7,142.63,38.69333072]
[1740870333457,5.6061,142.7,142.63,5.6088]
[1740870333772,5.6061,142.7,142.63,38.69333072]
[1740870334377,5.6061,142.7,142.64,33.08453072]
[1740870334568,5.6061,142.7,142.64,62.39483072]
[1740870334873,0.063,142.72,142.66,33.08453072]
[1740870335176,5.6684,142.72,142.66,62.39483072]
[1740870335974,0.063,142.72,142.66,62.39483072]
[1740870336165,0.063,142.72,142.66,68.00223072]
[1740870336368,0.063,142.72,142.66,34.9177]
[1740870336577,0.063,142.72,142.66,68.00223072]
[1740870338272,18.71264886,142.72,142.66,29.3103]
[1740870339383,5.6057,142.71,142.66,29.3103]
[1740870340264,18.64964886,142.7,142.66,29.3103]
[1740870340480,18.64964886,142.7,142.64,29.3103]
[1740870341470,5.6065,142.69,142.64,29.3103]
[1740870342283,18.64964886,142.68,142.64,29.3103]
[1740870342459,5.6065,142.69,142.64,29.3103]
[1740870342983,5.6065,142.69,142.64,34.9187]
[1740870343358,24.25574886,142.7,142.64,34.9187]
[1740870344170,24.25574886,142.7,142.64,29.3103]
[1740870347493,25.6058,142.71,142.66,33.08453072]
[1740870347970,5.6683,142.72,142.67,34.89993072]
[1740870348167,0.063,142.72,142.68,33.08453072]
[1740870348374,0.063,142.72,142.69,7.52]
[1740870351963,0.063,142.72,142.69,46.21093072]
[1740870352166,0.063,142.72,142.7,33.08453072]
[1740870352385,0.063,142.72,142.7,62.39483072]
[1740870352889,0.063,142.72,142.7,68.00083072]
[1740870353393,0.063,142.72,142.7,34.9163]
[1740870354085,0.063,142.72,142.7,29.3103]
[1740870356268,0.063,142.72,142.66,5.6076]
[1740870356269,0.063,142.72,142.66,29.3103]
[1740870356998,18.71264886,142.72,142.66,29.3103]
[1740870358092,20.0,142.7,142.66,29.3103]
[1740870358595,18.64964886,142.69,142.66,29.3103]
[1740870358782,18.64964886,142.69,142.64,29.3103]
[1740870358981,5.6069,142.68,142.64,29.3103]
[1740870360491,5.6069,142.68,142.64,49.99965912]
[1740870360791,18.64964886,142.67,142.62,36.8003]
[1740870360984,6.4124,142.66,142.62,29.3403]
[1740870361298,5.6081,142.65,142.62,29.3403]
[1740870362002,20.0,142.66,142.62,29.3403]
[1740870362172,21.8927,142.71,142.63,20.68935912]
[1740870362173,5.6069,142.68,142.63,20.68935912]
[1740870362373,5.6061,142.7,142.64,20.68935912]
[1740870362600,5.6061,142.7,142.64,49.99965912]
[1740870362769,18.64964886,142.69,142.64,29.3103]
[1740870363174,24.25644886,142.69,142.64,29.3103]
[1740870364089,38.27274886,142.69,142.62,1.7333]
[1740870364279,38.27274886,142.69,142.62,22.42265912]
[1740870364475,38.27274886,142.69,142.62,1.7333]
[1740870364671,38.27274886,142.69,142.62,0.03]
[1740870366080,38.27274886,142.69,142.62,20.71935912]
[1740870366984,38.27274886,142.69,142.62,0.03]
[1740870367904,20.0,142.66,142.62,0.03]
[1740870369176,5.6081,142.65,142.62,0.03]
[1740870369375,20.0,142.66,142.62,0.03]
[1740870369578,25.6077,142.66,142.62,0.03]
[1740870369995,5.6078,142.66,142.62,0.03]
[1740870370301,5.6069,142.68,142.62,20.71935912]
[1740870372402,5.6069,142.68,142.62,26.32845912]
[1740870372601,5.6069,142.68,142.62,20.71935912]
[1740870373798,83.0,142.7,142.63,20.68935912]
[1740870374001,0.063,142.69,142.64,20.68935912]
[1740870374986,0.063,142.69,142.63,146.1103]
[1740870375187,18.71264886,142.69,142.63,146.1103]
[1740870375382,5.6069,142.68,142.63,146.1103]
[1740870375578,18.64964886,142.67,142.63,29.3103]
[1740870375778,18.64964886,142.67,142.62,0.03]
[1740870376404,18.64964886,142.67,142.62,5.6392]
[1740870376607,83.063,142.69,142.62,26.32855912]
[1740870376905,88.6697,142.69,142.63,20.68935912]
[1740870377289,18.64964886,142.68,142.62,0.03]
[1740870378183,88.6697,142.69,142.62,20.71935912]
[1740870378379,88.6697,142.69,142.63,20.68935912]
[1740870379108,18.64964886,142.68,142.62,20.71935912]
[1740870379305,5.6073,142.67,142.62,0.03]
[1740870379799,18.64964886,142.66,142.62,0.03]
[1740870379991,18.64964886,142.64,142.62,0.03]
[1740870381109,5.6089,142.63,142.62,0.03]
[1740870383292,24.25854886,142.63,142.62,0.03]
[1740870385550,24.25854886,142.63,142.62,0.0001]
[1740870385723,25.08424886,142.62,142.61,0.0001]
[1740870386804,30.6252072,142.62,142.61,0.0001]
[1740870387332,36.2345072,142.62,142.61,0.0001]
[1740870388450,39.73988457,142.62,142.61,0.0001]
[1740870389310,18.64964886,142.54,142.48,29.3103]
[1740870389509,18.64964886,142.54,142.46,59.25635912]
[1740870389711,18.64964886,142.55,142.46,38.567]
[1740870389910,38.64964886,142.55,142.46,59.25635912]
[1740870390214,38.64964886,142.55,142.46,59.23635912]
[1740870390535,38.64964886,142.55,142.46,36.8303]
[1740870391042,18.64964886,142.53,142.46,29.3103]
[1740870391212,5.6132,142.52,142.46,29.3103]
[1740870391618,5.6132,142.52,142.46,49.99965912]
[1740870391932,18.64964886,142.51,142.46,49.99965912]
[1740870393332,18.64964886,142.51,142.46,55.61515912]
[1740870396219,5.6131,142.53,142.46,55.61515912]
[1740870397624,6.4346,142.58,142.51,20.68935912]
[1740870397932,12.0455,142.58,142.52,28.12935912]
[1740870398133,18.64964886,142.57,142.52,7.44]
[1740870399126,101.64964886,142.57,142.52,7.44]
[1740870399325,101.64964886,142.57,142.48,57.41965912]
[1740870399534,18.64964886,142.55,142.48,57.41965912]
[1740870400031,101.64964886,142.55,142.48,7.42]
[1740870400221,18.64964886,142.54,142.46,29.3403]
[1740870400423,18.64964886,142.52,142.46,29.3403]
[1740870401438,6.2293,142.51,142.46,0.03]
[1740870401939,5.614,142.5,142.46,0.03]
[1740870402141,18.64964886,142.49,142.46,0.03]
[1740870403936,5.6148,142.48,142.46,0.03]
[1740870404637,18.64964886,142.47,142.46,0.03]
[1740870405750,24.26444886,142.48,142.46,0.03]
[1740870411353,18.64964886,142.48,142.46,0.03]
[1740870411954,6.2293,142.51,142.46,0.03]
[1740870412158,11.8429,142.51,142.46,20.71935912]
[1740870412360,18.64964886,142.5,142.46,20.71935912]
[1740870413251,24.26374886,142.5,142.46,0.03]
[1740870415363,18.64964886,142.5,142.46,0.03]
[1740870415741,5.6133,142.52,142.47,20.68935912]
[1740870417173,5.6133,142.52,142.46,50.02965912]
[1740870419561,18.64964886,142.51,142.46,29.3403]
[1740870420766,18.64964886,142.51,142.45,125.7765]
[1740870420767,0.6597,142.46,142.45,125.7765]
[1740870420964,0.6597,142.46,142.45,8.9765]
[1740870421179,18.64964886,142.51,142.45,8.9765]
[1740870421558,5.614,142.5,142.45,8.9765]
[1740870422564,18.64964886,142.49,142.45,8.9765]
[1740870423066,18.64964886,142.49,142.4,82.3]
[1740870423067,18.64964886,142.47,142.4,82.3]
[1740870423472,83.0,142.48,142.4,102.98935912]
[1740870423473,5.6156,142.46,142.4,102.98935912]
[1740870423668,18.64964886,142.45,142.4,103.01935912]
[1740870424571,5.6163,142.44,142.4,103.01935912]
[1740870424777,5.6156,142.46,142.41,20.68935912]
[1740870424962,5.6156,142.46,142.42,20.68935912]
[1740870425169,5.6148,142.48,142.44,20.68935912]
[1740870425551,5.6148,142.48,142.43,20.68935912]
[1740870425747,5.6144,142.49,142.43,20.68935912]
[1740870426272,5.6144,142.49,142.44,20.68935912]
[1740870427056,18.64964886,142.5,142.44,20.68935912]
[1740870427261,24.26364886,142.5,142.44,20.68935912]
[1740870427774,24.26364886,142.5,142.44,26.30565912]
[1740870427956,5.6128,142.53,142.46,20.68935912]
[1740870428152,5.6128,142.53,142.47,7.22]
[1740870428353,18.64964886,142.52,142.47,7.22]
[1740870428668,5.6128,142.53,142.47,27.90935912]